[Event "Early-Titled-Tuesday-Blitz-April-16-2024"]
[Site "Chess.com"]
[Date "2024.04.16"]
[Round "7"]
[White "Rawnsdale"]
[Black "GAO"]
[Result "1-0"]
[WhiteElo "2496"]
[BlackElo "2323"]
[TimeControl "180+1"]
[EndTime "9:19:05 PDT"]
[Termination "Rawnsdale won by resignation"]

1. e4 {[%clk 0:02:47]} 1... c5 {[%clk 0:02:57.4]} 2. Nf3 {[%clk 0:02:44.6]} 2...
Nc6 {[%clk 0:02:56.8]} 3. d4 {[%clk 0:02:44.7]} 3... cxd4 {[%clk 0:02:57.7]} 4.
Nxd4 {[%clk 0:02:45.4]} 4... g6 {[%clk 0:02:58.1]} 5. c4 {[%clk 0:02:44.5]} 5...
Bg7 {[%clk 0:02:58.2]} 6. Be3 {[%clk 0:02:44.9]} 6... Qb6 {[%clk 0:02:58]} 7.
Nb3 {[%clk 0:02:22.6]} 7... Qd8 {[%clk 0:02:54.5]} 8. Nc3 {[%clk 0:02:22.3]}
8... Bxc3+ {[%clk 0:02:53.7]} 9. bxc3 {[%clk 0:02:22.4]} 9... Nf6 {[%clk
0:02:54.3]} 10. Bd3 {[%clk 0:02:20.1]} 10... d6 {[%clk 0:02:53.9]} 11. O-O
{[%clk 0:02:20.1]} 11... a5 {[%clk 0:02:54.4]} 12. c5 {[%clk 0:02:14.3]} 12...
a4 {[%clk 0:02:54.1]} 13. Nd4 {[%clk 0:02:14.2]} 13... Ne5 {[%clk 0:02:53]} 14.
cxd6 {[%clk 0:02:12.2]} 14... Qxd6 {[%clk 0:02:52.4]} 15. Bb5+ {[%clk
0:02:06.5]} 15... Bd7 {[%clk 0:02:52.4]} 16. f4 {[%clk 0:02:06.3]} 16... Neg4
{[%clk 0:02:50.5]} 17. Qf3 {[%clk 0:01:31.1]} 17... Nxe3 {[%clk 0:02:35.8]} 18.
Qxe3 {[%clk 0:01:28.9]} 18... Bxb5 {[%clk 0:02:25.9]} 19. Nxb5 {[%clk
0:01:28.7]} 19... Qd7 {[%clk 0:02:26.8]} 20. c4 {[%clk 0:01:24]} 20... O-O
{[%clk 0:02:21.1]} 21. Rad1 {[%clk 0:01:22.7]} 21... Qc6 {[%clk 0:02:20.8]} 22.
e5 {[%clk 0:01:20.7]} 22... Ng4 {[%clk 0:02:20.7]} 23. Qd4 {[%clk 0:01:10.3]}
23... Rac8 {[%clk 0:02:17.6]} 24. h3 {[%clk 0:01:09.1]} 24... Nh6 {[%clk
0:02:17.5]} 25. Na7 {[%clk 0:01:05.6]} 25... Qxc4 {[%clk 0:02:13.1]} 26. Nxc8
{[%clk 0:01:05.3]} 26... Rxc8 {[%clk 0:02:12]} 27. Qxc4 {[%clk 0:00:58]} 27...
Rxc4 {[%clk 0:02:12.9]} 28. Rc1 {[%clk 0:00:58.3]} 28... Rb4 {[%clk 0:02:09.9]}
29. g4 {[%clk 0:00:57.6]} 29... Rb2 {[%clk 0:02:05.8]} 30. Rf2 {[%clk
0:00:57.2]} 30... Rb4 {[%clk 0:02:03.8]} 31. Rc8+ {[%clk 0:00:48.5]} 31... Kg7
{[%clk 0:02:03.9]} 32. Rc7 {[%clk 0:00:49.4]} 32... e6 {[%clk 0:02:01.1]} 33.
Kg2 {[%clk 0:00:49.1]} 33... Ng8 {[%clk 0:02:00.9]} 34. f5 {[%clk 0:00:42]}
34... gxf5 {[%clk 0:01:59.1]} 35. gxf5 {[%clk 0:00:42.9]} 35... Nh6 {[%clk
0:01:55.5]} 36. fxe6 {[%clk 0:00:40.3]} 36... Rb6 {[%clk 0:01:52.7]} 37. exf7
{[%clk 0:00:37.9]} 37... Rg6+ {[%clk 0:01:52.2]} 38. Kf1 {[%clk 0:00:37.2]}
38... Kf8 {[%clk 0:01:48.5]} 39. Rc8+ {[%clk 0:00:37.5]} 1-0

[Event "Early-Titled-Tuesday-Blitz-April-16-2024"]
[Site "Chess.com"]
[Date "2024.04.16"]
[Round "7"]
[White "LastHeroJr"]
[Black "Ariadna_Atreides"]
[Result "1-0"]
[WhiteElo "2482"]
[BlackElo "2202"]
[TimeControl "180+1"]
[EndTime "9:19:06 PDT"]
[Termination "LastHeroJr won by resignation"]

1. e4 {[%clk 0:03:00.9]} 1... c6 {[%clk 0:02:59.9]} 2. d4 {[%clk 0:03:00.1]}
2... d5 {[%clk 0:03:00.5]} 3. exd5 {[%clk 0:02:59.7]} 3... cxd5 {[%clk
0:03:00.5]} 4. Nf3 {[%clk 0:03:00.6]} 4... Nc6 {[%clk 0:02:58.8]} 5. Bb5 {[%clk
0:03:00.1]} 5... Bd7 {[%clk 0:02:57.8]} 6. c3 {[%clk 0:02:57.6]} 6... e6 {[%clk
0:02:57]} 7. O-O {[%clk 0:02:56.9]} 7... Bd6 {[%clk 0:02:55.2]} 8. Re1 {[%clk
0:02:56.2]} 8... Nge7 {[%clk 0:02:54.6]} 9. Bg5 {[%clk 0:02:55.2]} 9... Qc7
{[%clk 0:02:51.7]} 10. Nbd2 {[%clk 0:02:53.7]} 10... a6 {[%clk 0:02:47.2]} 11.
Ba4 {[%clk 0:02:52.9]} 11... f6 {[%clk 0:02:43.5]} 12. Bh4 {[%clk 0:02:52.3]}
12... O-O-O {[%clk 0:02:37.1]} 13. c4 {[%clk 0:02:50.1]} 13... g5 {[%clk
0:02:34]} 14. Bg3 {[%clk 0:02:49.9]} 14... Bxg3 {[%clk 0:02:29.9]} 15. hxg3
{[%clk 0:02:49.3]} 15... h5 {[%clk 0:02:24.9]} 16. cxd5 {[%clk 0:02:49.1]} 16...
Nxd5 {[%clk 0:02:22.2]} 17. Rc1 {[%clk 0:02:47.8]} 17... Kb8 {[%clk 0:02:20.4]}
18. Ne4 {[%clk 0:02:44.8]} 18... h4 {[%clk 0:02:18.4]} 19. gxh4 {[%clk
0:02:43.1]} 19... gxh4 {[%clk 0:02:17.6]} 20. Nc5 {[%clk 0:02:42.9]} 20... Rdg8
{[%clk 0:01:34]} 21. Nxe6 {[%clk 0:02:33.5]} 21... Bxe6 {[%clk 0:01:19.4]} 22.
Rxe6 {[%clk 0:02:32.5]} 22... h3 {[%clk 0:01:19.5]} 23. Bxc6 {[%clk 0:02:28.9]}
23... hxg2 {[%clk 0:00:53.9]} 24. Re8+ {[%clk 0:02:10.3]} 24... Rxe8 {[%clk
0:00:33.4]} 25. Bxe8 {[%clk 0:02:10.3]} 25... Qxc1 {[%clk 0:00:10.5]} 26. Qxc1
{[%clk 0:02:05.5]} 26... Rh1+ {[%clk 0:00:11]} 27. Kxg2 {[%clk 0:02:05.9]} 27...
Rxc1 {[%clk 0:00:11.5]} 28. Bf7 {[%clk 0:02:06.3]} 28... Nf4+ {[%clk 0:00:10.5]}
29. Kg3 {[%clk 0:02:06.1]} 29... Ne2+ {[%clk 0:00:10.7]} 30. Kg4 {[%clk
0:02:05]} 30... Rd1 {[%clk 0:00:09.4]} 31. d5 {[%clk 0:02:01]} 31... Rd2 {[%clk
0:00:07.8]} 32. Nxd2 {[%clk 0:02:00.1]} 1-0

[Event "Early-Titled-Tuesday-Blitz-April-16-2024"]
[Site "Chess.com"]
[Date "2024.04.16"]
[Round "7"]
[White "Timerkhanov"]
[Black "RobertoJBM"]
[Result "1-0"]
[WhiteElo "2654"]
[BlackElo "2888"]
[TimeControl "180+1"]
[EndTime "9:19:12 PDT"]
[Termination "Timerkhanov won by resignation"]

1. d4 {[%clk 0:02:56.4]} 1... d5 {[%clk 0:02:59.6]} 2. Nf3 {[%clk 0:02:54.2]}
2... Nf6 {[%clk 0:02:59]} 3. g3 {[%clk 0:02:54.7]} 3... e6 {[%clk 0:02:54.7]} 4.
Bg2 {[%clk 0:02:55.1]} 4... Be7 {[%clk 0:02:54.5]} 5. O-O {[%clk 0:02:55.6]}
5... O-O {[%clk 0:02:55.4]} 6. c4 {[%clk 0:02:53.4]} 6... dxc4 {[%clk 0:02:55]}
7. Qc2 {[%clk 0:02:53.1]} 7... a6 {[%clk 0:02:54.1]} 8. a4 {[%clk 0:02:53.2]}
8... Bd7 {[%clk 0:02:53.6]} 9. Qxc4 {[%clk 0:02:52.3]} 9... Bc6 {[%clk
0:02:53.3]} 10. Bf4 {[%clk 0:02:50.9]} 10... Nbd7 {[%clk 0:02:47.2]} 11. Nc3
{[%clk 0:02:42.7]} 11... Bd6 {[%clk 0:02:45.8]} 12. a5 {[%clk 0:02:39.5]} 12...
Nd5 {[%clk 0:02:40.6]} 13. Bxd6 {[%clk 0:02:35.2]} 13... cxd6 {[%clk 0:02:39.1]}
14. Nxd5 {[%clk 0:02:35.7]} 14... Bxd5 {[%clk 0:02:37.1]} 15. Qb4 {[%clk
0:02:36.2]} 15... Nf6 {[%clk 0:02:36.5]} 16. Rfc1 {[%clk 0:02:34.3]} 16... Rc8
{[%clk 0:02:35.3]} 17. Nd2 {[%clk 0:02:31.6]} 17... Bxg2 {[%clk 0:02:32.2]} 18.
Kxg2 {[%clk 0:02:32.5]} 18... Rxc1 {[%clk 0:01:46.6]} 19. Rxc1 {[%clk
0:02:33.4]} 19... Nd5 {[%clk 0:01:46.7]} 20. Qxb7 {[%clk 0:02:33.3]} 20... Qxa5
{[%clk 0:01:46.5]} 21. Nc4 {[%clk 0:02:16.2]} 21... Qa4 {[%clk 0:01:45.8]} 22.
e3 {[%clk 0:02:07.6]} 22... h5 {[%clk 0:01:21.6]} 23. Nxd6 {[%clk 0:02:01.7]}
23... h4 {[%clk 0:01:22]} 24. Rc8 {[%clk 0:02:00.6]} 24... Rxc8 {[%clk
0:01:12.4]} 25. Qxc8+ {[%clk 0:02:01.5]} 25... Kh7 {[%clk 0:01:10.8]} 26. Nxf7
{[%clk 0:02:00.4]} 26... hxg3 {[%clk 0:00:46.2]} 27. hxg3 {[%clk 0:01:54.2]}
27... Qd1 {[%clk 0:00:33.5]} 28. Qh8+ {[%clk 0:01:50.4]} 28... Kg6 {[%clk
0:00:33.7]} 29. Ne5+ {[%clk 0:01:51.1]} 29... Kf5 {[%clk 0:00:31.7]} 30. g4+
{[%clk 0:01:43.8]} 1-0

[Event "Early-Titled-Tuesday-Blitz-April-16-2024"]
[Site "Chess.com"]
[Date "2024.04.16"]
[Round "7"]
[White "Alen_Yeremyann"]
[Black "JonasEilenberg"]
[Result "1-0"]
[WhiteElo "2832"]
[BlackElo "2623"]
[TimeControl "180+1"]
[EndTime "9:19:16 PDT"]
[Termination "Alen_Yeremyann won by resignation"]

1. e4 {[%clk 0:02:57.5]} 1... c5 {[%clk 0:03:00.3]} 2. Nc3 {[%clk 0:02:52.6]}
2... Nc6 {[%clk 0:03:00.6]} 3. Bb5 {[%clk 0:02:52.1]} 3... Nd4 {[%clk 0:03:01]}
4. Bc4 {[%clk 0:02:52.4]} 4... e6 {[%clk 0:02:57.5]} 5. Nge2 {[%clk 0:02:52.1]}
5... Nf6 {[%clk 0:02:50.4]} 6. O-O {[%clk 0:02:48]} 6... d5 {[%clk 0:02:43]} 7.
exd5 {[%clk 0:02:48.3]} 7... exd5 {[%clk 0:02:43.9]} 8. Nxd5 {[%clk 0:02:49.1]}
8... Bd6 {[%clk 0:02:32.6]} 9. Nxd4 {[%clk 0:02:37.3]} 9... cxd4 {[%clk
0:02:33.5]} 10. Qf3 {[%clk 0:02:36.6]} 10... Nxd5 {[%clk 0:02:31.6]} 11. Bxd5
{[%clk 0:02:36]} 11... O-O {[%clk 0:02:31.5]} 12. d3 {[%clk 0:02:36.6]} 12...
Qc7 {[%clk 0:02:24.3]} 13. h3 {[%clk 0:02:11.4]} 13... Qxc2 {[%clk 0:02:24]} 14.
Bc4 {[%clk 0:01:41.8]} 14... Be6 {[%clk 0:01:56.2]} 15. b3 {[%clk 0:01:40.5]}
15... Bxc4 {[%clk 0:01:51.4]} 16. bxc4 {[%clk 0:01:41.4]} 16... Rfe8 {[%clk
0:01:46.9]} 17. Bg5 {[%clk 0:01:38.9]} 17... b6 {[%clk 0:01:31.8]} 18. Rae1
{[%clk 0:01:34.4]} 18... Qxa2 {[%clk 0:01:23.2]} 19. Qg4 {[%clk 0:01:34.4]}
19... Bf8 {[%clk 0:00:45.6]} 20. Qxd4 {[%clk 0:01:25.5]} 20... Bc5 {[%clk
0:00:43]} 21. Rxe8+ {[%clk 0:01:19]} 21... Rxe8 {[%clk 0:00:42.4]} 22. Qd7
{[%clk 0:01:19]} 22... Qe2 {[%clk 0:00:35.6]} 23. d4 {[%clk 0:01:17.6]} 23...
Bf8 {[%clk 0:00:30.7]} 24. Be3 {[%clk 0:01:13.1]} 24... Qxc4 {[%clk 0:00:28.3]}
25. Qxe8 {[%clk 0:01:13]} 1-0

[Event "Early-Titled-Tuesday-Blitz-April-16-2024"]
[Site "Chess.com"]
[Date "2024.04.16"]
[Round "7"]
[White "DominguezOnYoutube"]
[Black "IM_ArthurDW08"]
[Result "1-0"]
[WhiteElo "2942"]
[BlackElo "2754"]
[TimeControl "180+1"]
[EndTime "9:19:17 PDT"]
[Termination "DominguezOnYoutube won by resignation"]

1. e4 {[%clk 0:03:00.9]} 1... c5 {[%clk 0:02:59]} 2. Nf3 {[%clk 0:03:00.6]} 2...
d6 {[%clk 0:02:59.6]} 3. d4 {[%clk 0:03:00.8]} 3... cxd4 {[%clk 0:03:00.5]} 4.
Nxd4 {[%clk 0:03:01.1]} 4... Nf6 {[%clk 0:03:01.2]} 5. Nc3 {[%clk 0:03:01.3]}
5... Bd7 {[%clk 0:02:57.5]} 6. f3 {[%clk 0:02:53.2]} 6... e6 {[%clk 0:02:51.8]}
7. Be3 {[%clk 0:02:52]} 7... a6 {[%clk 0:02:51.1]} 8. g4 {[%clk 0:02:49.1]} 8...
Nc6 {[%clk 0:02:38.4]} 9. Qd2 {[%clk 0:02:43.8]} 9... Ne5 {[%clk 0:02:28.4]} 10.
g5 {[%clk 0:02:41.7]} 10... Nh5 {[%clk 0:02:27.1]} 11. O-O-O {[%clk 0:02:39.7]}
11... b5 {[%clk 0:02:21.5]} 12. a3 {[%clk 0:02:39.6]} 12... Rc8 {[%clk 0:02:17]}
13. f4 {[%clk 0:02:36.8]} 13... Nc4 {[%clk 0:02:16.9]} 14. Bxc4 {[%clk
0:02:36.9]} 14... Rxc4 {[%clk 0:02:17.8]} 15. f5 {[%clk 0:02:36.7]} 15... Be7
{[%clk 0:02:00.9]} 16. fxe6 {[%clk 0:02:14.7]} 16... fxe6 {[%clk 0:02:01.8]} 17.
Rhf1 {[%clk 0:02:14.5]} 17... Qa5 {[%clk 0:01:46.3]} 18. Nb3 {[%clk 0:01:16]}
18... Qc7 {[%clk 0:01:43.4]} 19. Bd4 {[%clk 0:01:15.2]} 19... Rg8 {[%clk
0:01:18.8]} 20. Kb1 {[%clk 0:01:14.1]} 20... Kd8 {[%clk 0:01:12.4]} 21. Qf2
{[%clk 0:00:58.9]} 21... Rf8 {[%clk 0:01:06.1]} 22. Qe3 {[%clk 0:00:57.5]} 22...
Rxf1 {[%clk 0:00:53.9]} 23. Rxf1 {[%clk 0:00:58.4]} 23... Kc8 {[%clk 0:00:54.2]}
24. Bb6 {[%clk 0:00:51.2]} 24... Qb8 {[%clk 0:00:54.3]} 25. Na5 {[%clk
0:00:44.9]} 1-0

[Event "Early-Titled-Tuesday-Blitz-April-16-2024"]
[Site "Chess.com"]
[Date "2024.04.16"]
[Round "7"]
[White "MaxLeto"]
[Black "mariangie523"]
[Result "1-0"]
[WhiteElo "2390"]
[BlackElo "2154"]
[TimeControl "180+1"]
[EndTime "9:19:37 PDT"]
[Termination "MaxLeto won by resignation"]

1. g4 {[%clk 0:03:00.9]} 1... c5 {[%clk 0:02:53.4]} 2. Bg2 {[%clk 0:03:01.5]}
2... g6 {[%clk 0:02:52.9]} 3. c4 {[%clk 0:03:01.2]} 3... Bg7 {[%clk 0:02:52.3]}
4. Nc3 {[%clk 0:03:02.1]} 4... e6 {[%clk 0:02:52.1]} 5. d3 {[%clk 0:03:02.4]}
5... Ne7 {[%clk 0:02:50.6]} 6. h4 {[%clk 0:03:02.6]} 6... d5 {[%clk 0:02:47.3]}
7. h5 {[%clk 0:03:02.9]} 7... dxc4 {[%clk 0:02:43.8]} 8. h6 {[%clk 0:02:58.7]}
8... Bxc3+ {[%clk 0:02:41.2]} 9. bxc3 {[%clk 0:02:59.6]} 9... cxd3 {[%clk
0:02:40.5]} 10. exd3 {[%clk 0:03:00.5]} 10... Nbc6 {[%clk 0:02:31.4]} 11. Bg5
{[%clk 0:02:58.8]} 11... Qa5 {[%clk 0:02:25.2]} 12. Bf6 {[%clk 0:02:58.5]} 12...
Rg8 {[%clk 0:02:22.4]} 13. Ne2 {[%clk 0:02:48.6]} 13... Nd5 {[%clk 0:02:22.3]}
14. Bg7 {[%clk 0:02:45.3]} 14... f6 {[%clk 0:02:09.9]} 15. Qd2 {[%clk
0:02:39.2]} 15... Nce7 {[%clk 0:01:53.5]} 16. Rb1 {[%clk 0:02:26.4]} 16... Qc7
{[%clk 0:01:40.4]} 17. c4 {[%clk 0:02:22.4]} 17... Nb4 {[%clk 0:01:29.1]} 18.
Bxf6 {[%clk 0:02:19.1]} 18... Qd6 {[%clk 0:01:18.5]} 19. Rb3 {[%clk 0:02:17.3]}
19... Nec6 {[%clk 0:01:15.3]} 20. a3 {[%clk 0:02:06.6]} 20... Na6 {[%clk
0:01:04]} 21. O-O {[%clk 0:02:02]} 21... e5 {[%clk 0:00:59.8]} 22. g5 {[%clk
0:02:02.6]} 22... Nc7 {[%clk 0:00:28]} 23. f4 {[%clk 0:01:46.7]} 23... exf4
{[%clk 0:00:22.1]} 24. Nxf4 {[%clk 0:01:44.3]} 24... Nd4 {[%clk 0:00:18.7]} 25.
Rbb1 {[%clk 0:01:39.8]} 25... Rb8 {[%clk 0:00:13.1]} 26. Rbe1+ {[%clk
0:01:36.2]} 26... Nce6 {[%clk 0:00:13.4]} 27. Be5 {[%clk 0:01:30.8]} 27... Qd7
{[%clk 0:00:07.5]} 28. Bxb8 {[%clk 0:01:29.7]} 28... Kd8 {[%clk 0:00:06.6]} 29.
Nd5 {[%clk 0:01:28.2]} 29... Re8 {[%clk 0:00:04]} 30. Bh3 {[%clk 0:01:27.4]} 1-0

[Event "Early-Titled-Tuesday-Blitz-April-16-2024"]
[Site "Chess.com"]
[Date "2024.04.16"]
[Round "7"]
[White "ReinisUz"]
[Black "koncheto"]
[Result "1-0"]
[WhiteElo "2383"]
[BlackElo "2540"]
[TimeControl "180+1"]
[EndTime "9:19:38 PDT"]
[Termination "ReinisUz won by resignation"]

1. c4 {[%clk 0:03:00.9]} 1... d5 {[%clk 0:02:56.7]} 2. cxd5 {[%clk 0:03:00.4]}
2... c6 {[%clk 0:02:56.4]} 3. dxc6 {[%clk 0:02:58.6]} 3... Nxc6 {[%clk
0:02:57.3]} 4. Nc3 {[%clk 0:02:59.1]} 4... e5 {[%clk 0:02:55.6]} 5. g3 {[%clk
0:02:59]} 5... Nf6 {[%clk 0:02:54.6]} 6. Bg2 {[%clk 0:02:59.3]} 6... Bc5 {[%clk
0:02:52]} 7. d3 {[%clk 0:02:57.1]} 7... Bf5 {[%clk 0:02:15.3]} 8. Nf3 {[%clk
0:02:51.3]} 8... e4 {[%clk 0:01:42.2]} 9. dxe4 {[%clk 0:02:49.9]} 9... Qxd1+
{[%clk 0:01:39.7]} 10. Nxd1 {[%clk 0:02:46.3]} 10... Nb4 {[%clk 0:01:22.9]} 11.
O-O {[%clk 0:01:46.7]} 11... Bxe4 {[%clk 0:01:19.4]} 12. Nc3 {[%clk 0:01:40.8]}
12... Bc6 {[%clk 0:01:17.6]} 13. Bg5 {[%clk 0:01:28.5]} 13... O-O {[%clk
0:01:12.6]} 14. Bxf6 {[%clk 0:01:28.4]} 14... gxf6 {[%clk 0:01:13.5]} 15. a3
{[%clk 0:01:27.9]} 15... Nd5 {[%clk 0:01:05.3]} 16. Nxd5 {[%clk 0:01:28]} 16...
Bxd5 {[%clk 0:01:05.1]} 17. Rac1 {[%clk 0:01:26.6]} 17... Be7 {[%clk 0:01:00.8]}
18. Nh4 {[%clk 0:01:20.7]} 18... Bxg2 {[%clk 0:00:56.7]} 19. Kxg2 {[%clk
0:01:18.6]} 19... Rfd8 {[%clk 0:00:57.1]} 20. Nf5 {[%clk 0:01:12.6]} 20... Bf8
{[%clk 0:00:56.6]} 21. Rc2 {[%clk 0:01:12.5]} 21... Rd5 {[%clk 0:00:55.7]} 22.
e4 {[%clk 0:01:08.5]} 22... Rb5 {[%clk 0:00:56]} 23. Rd1 {[%clk 0:01:07.2]}
23... a5 {[%clk 0:00:56]} 24. Rd7 {[%clk 0:01:06.6]} 24... Re8 {[%clk 0:00:54]}
25. f3 {[%clk 0:01:04.8]} 25... a4 {[%clk 0:00:43.4]} 26. h4 {[%clk 0:01:03.6]}
26... h5 {[%clk 0:00:40.2]} 27. Nd6 {[%clk 0:00:53.4]} 27... Re6 {[%clk
0:00:37]} 28. Nxb5 {[%clk 0:00:52.1]} 1-0

[Event "Early-Titled-Tuesday-Blitz-April-16-2024"]
[Site "Chess.com"]
[Date "2024.04.16"]
[Round "7"]
[White "UNSTOPPABLE_LEGEND"]
[Black "Hui_Li_Macau"]
[Result "1-0"]
[WhiteElo "2566"]
[BlackElo "2403"]
[TimeControl "180+1"]
[EndTime "9:19:46 PDT"]
[Termination "UNSTOPPABLE_LEGEND won by resignation"]

1. d4 {[%clk 0:03:00.3]} 1... d5 {[%clk 0:03:00.1]} 2. Bf4 {[%clk 0:03:00.4]}
2... Nf6 {[%clk 0:03:00.3]} 3. e3 {[%clk 0:02:59.6]} 3... c5 {[%clk 0:03:00.7]}
4. c3 {[%clk 0:02:59.7]} 4... Nc6 {[%clk 0:02:59.2]} 5. Nd2 {[%clk 0:03:00.2]}
5... cxd4 {[%clk 0:02:59.5]} 6. exd4 {[%clk 0:03:00.1]} 6... Bf5 {[%clk
0:03:00.4]} 7. Ngf3 {[%clk 0:02:59.2]} 7... e6 {[%clk 0:03:01]} 8. Bb5 {[%clk
0:02:58.7]} 8... Qb6 {[%clk 0:01:32.1]} 9. a4 {[%clk 0:02:45.7]} 9... a6 {[%clk
0:01:29.6]} 10. Bxc6+ {[%clk 0:02:42.8]} 10... bxc6 {[%clk 0:01:22.3]} 11. b4
{[%clk 0:02:31.5]} 11... a5 {[%clk 0:01:22.1]} 12. bxa5 {[%clk 0:02:31]} 12...
Qxa5 {[%clk 0:01:21.5]} 13. O-O {[%clk 0:02:31.1]} 13... Be7 {[%clk 0:00:59.8]}
14. Ne5 {[%clk 0:02:22]} 14... Ra6 {[%clk 0:00:49.8]} 15. Nb3 {[%clk 0:02:05.4]}
15... Qxc3 {[%clk 0:00:42.3]} 16. Rc1 {[%clk 0:02:04.5]} 16... Qb2 {[%clk
0:00:37.8]} 17. Nxc6 {[%clk 0:02:04.2]} 17... Ba3 {[%clk 0:00:30.3]} 18. Nb8
{[%clk 0:01:55.2]} 18... Rb6 {[%clk 0:00:11.6]} 19. Rc8+ {[%clk 0:01:55]} 19...
Ke7 {[%clk 0:00:11.7]} 20. Rxh8 {[%clk 0:01:55.4]} 20... Qxb3 {[%clk 0:00:06.5]}
21. Nc6+ {[%clk 0:01:53]} 21... Kd7 {[%clk 0:00:02]} 22. Ne5+ {[%clk 0:01:41.3]}
22... Ke7 {[%clk 0:00:01.9]} 23. Qe2 {[%clk 0:01:37.3]} 23... Qxa4 {[%clk
0:00:01.5]} 24. Qd2 {[%clk 0:01:30]} 24... h6 {[%clk 0:00:01.5]} 25. Rc8 {[%clk
0:01:21.3]} 25... Bb4 {[%clk 0:00:01.7]} 26. Qc1 {[%clk 0:01:19.6]} 26... Qa7
{[%clk 0:00:01.5]} 27. Rc7+ {[%clk 0:01:18.9]} 1-0

[Event "Early-Titled-Tuesday-Blitz-April-16-2024"]
[Site "Chess.com"]
[Date "2024.04.16"]
[Round "7"]
[White "Burgsvik"]
[Black "Bastiandash"]
[Result "0-1"]
[WhiteElo "2266"]
[BlackElo "2538"]
[TimeControl "180+1"]
[EndTime "9:19:56 PDT"]
[Termination "Bastiandash won by resignation"]

1. e4 {[%clk 0:03:00.9]} 1... c5 {[%clk 0:02:22.9]} 2. Nf3 {[%clk 0:03:00.5]}
2... e6 {[%clk 0:02:23.8]} 3. d4 {[%clk 0:03:00.7]} 3... cxd4 {[%clk 0:02:24.7]}
4. Nxd4 {[%clk 0:03:01]} 4... a6 {[%clk 0:02:25.4]} 5. Bd3 {[%clk 0:03:00]} 5...
Qb6 {[%clk 0:02:23.4]} 6. Nb3 {[%clk 0:02:58.4]} 6... Qc7 {[%clk 0:02:23.8]} 7.
N1d2 {[%clk 0:02:55.5]} 7... Nf6 {[%clk 0:02:23.6]} 8. g3 {[%clk 0:02:49.1]}
8... Nc6 {[%clk 0:02:23.4]} 9. Nc4 {[%clk 0:02:48.5]} 9... b5 {[%clk 0:02:17.7]}
10. Ne3 {[%clk 0:02:42.1]} 10... h5 {[%clk 0:02:15.1]} 11. Ng2 {[%clk
0:02:30.9]} 11... Ne5 {[%clk 0:02:10]} 12. f4 {[%clk 0:02:22.2]} 12... Nxd3+
{[%clk 0:01:59.2]} 13. cxd3 {[%clk 0:02:20.8]} 13... Bb7 {[%clk 0:01:59.9]} 14.
Be3 {[%clk 0:02:19.2]} 14... Rc8 {[%clk 0:01:58.5]} 15. Rc1 {[%clk 0:02:17.3]}
15... Qb8 {[%clk 0:01:50.8]} 16. O-O {[%clk 0:02:11.4]} 16... Ng4 {[%clk
0:01:47.5]} 17. Rxc8+ {[%clk 0:02:02.2]} 17... Qxc8 {[%clk 0:01:48.4]} 18. Bd4
{[%clk 0:01:47.9]} 18... d6 {[%clk 0:01:41.8]} 19. h3 {[%clk 0:01:47.5]} 19...
Nf6 {[%clk 0:01:35.2]} 20. Qd2 {[%clk 0:01:42.7]} 20... Be7 {[%clk 0:01:33.7]}
21. Rc1 {[%clk 0:01:41.5]} 21... Qd7 {[%clk 0:01:34.1]} 22. f5 {[%clk
0:01:20.6]} 22... O-O {[%clk 0:01:28.7]} 23. Rf1 {[%clk 0:01:15.7]} 23... e5
{[%clk 0:01:27.2]} 24. Be3 {[%clk 0:01:12.5]} 24... d5 {[%clk 0:01:28.1]} 25.
Nc5 {[%clk 0:01:03]} 25... Bxc5 {[%clk 0:01:26.2]} 26. Bxc5 {[%clk 0:01:02.9]}
26... Rc8 {[%clk 0:01:27.1]} 27. b4 {[%clk 0:00:59.4]} 27... dxe4 {[%clk
0:01:27]} 28. Rd1 {[%clk 0:00:41.2]} 28... Qxf5 {[%clk 0:01:18.3]} 29. Kh2
{[%clk 0:00:22]} 29... Rd8 {[%clk 0:01:14]} 30. Qe3 {[%clk 0:00:17.7]} 30...
Rxd3 {[%clk 0:01:11.1]} 31. Rxd3 {[%clk 0:00:16.9]} 31... exd3 {[%clk 0:01:12]}
32. Be7 {[%clk 0:00:14.5]} 32... Qe4 {[%clk 0:01:10.9]} 33. Qf2 {[%clk
0:00:13.6]} 33... Qxg2+ {[%clk 0:01:09.6]} 34. Qxg2 {[%clk 0:00:13.4]} 34...
Bxg2 {[%clk 0:01:10.5]} 35. Kxg2 {[%clk 0:00:13.8]} 35... d2 {[%clk 0:01:10.9]}
0-1

[Event "Early-Titled-Tuesday-Blitz-April-16-2024"]
[Site "Chess.com"]
[Date "2024.04.16"]
[Round "7"]
[White "AsaHoffmann"]
[Black "NowInChess"]
[Result "0-1"]
[WhiteElo "2380"]
[BlackElo "2249"]
[TimeControl "180+1"]
[EndTime "9:20:00 PDT"]
[Termination "NowInChess won by checkmate"]

1. d4 {[%clk 0:02:51.2]} 1... Nf6 {[%clk 0:02:59.5]} 2. Bg5 {[%clk 0:02:47]}
2... e6 {[%clk 0:02:57.8]} 3. Nd2 {[%clk 0:02:46.6]} 3... d5 {[%clk 0:02:53.1]}
4. e3 {[%clk 0:02:46.5]} 4... Bd6 {[%clk 0:02:50.4]} 5. Bd3 {[%clk 0:02:44.7]}
5... O-O {[%clk 0:02:50.2]} 6. f4 {[%clk 0:02:44.8]} 6... c5 {[%clk 0:02:44.7]}
7. c3 {[%clk 0:02:44.7]} 7... Nbd7 {[%clk 0:02:40.1]} 8. Ngf3 {[%clk 0:02:44.7]}
8... b6 {[%clk 0:02:38.2]} 9. Ne5 {[%clk 0:02:44.4]} 9... Qc7 {[%clk 0:02:32.7]}
10. O-O {[%clk 0:02:43.5]} 10... Bb7 {[%clk 0:02:31.7]} 11. Qf3 {[%clk
0:02:43.2]} 11... g6 {[%clk 0:02:05.2]} 12. Qh3 {[%clk 0:02:39.3]} 12... Ne4
{[%clk 0:02:01.3]} 13. Bxe4 {[%clk 0:02:33.2]} 13... dxe4 {[%clk 0:01:56.7]} 14.
Bh6 {[%clk 0:02:28.1]} 14... Rfe8 {[%clk 0:01:45.9]} 15. Qh4 {[%clk 0:02:26.5]}
15... Qd8 {[%clk 0:01:26.4]} 16. Bg5 {[%clk 0:02:24.2]} 16... f6 {[%clk
0:01:20.1]} 17. Ng4 {[%clk 0:01:50.8]} 17... fxg5 {[%clk 0:01:13]} 18. fxg5
{[%clk 0:01:50.6]} 18... Rf8 {[%clk 0:00:50.5]} 19. Rxf8+ {[%clk 0:01:31.2]}
19... Bxf8 {[%clk 0:00:45.6]} 20. Nh6+ {[%clk 0:01:27.4]} 20... Bxh6 {[%clk
0:00:42.8]} 21. Qxh6 {[%clk 0:01:27.2]} 21... Qe7 {[%clk 0:00:41.9]} 22. Rf1
{[%clk 0:01:23.7]} 22... Rf8 {[%clk 0:00:41.8]} 23. Qh4 {[%clk 0:01:16.6]} 23...
Rxf1+ {[%clk 0:00:35.8]} 24. Kxf1 {[%clk 0:01:16.3]} 24... cxd4 {[%clk
0:00:31.1]} 25. cxd4 {[%clk 0:01:15.9]} 25... e5 {[%clk 0:00:29.5]} 26. Nxe4
{[%clk 0:01:13.3]} 26... exd4 {[%clk 0:00:27.7]} 27. Nf6+ {[%clk 0:01:12.3]}
27... Nxf6 {[%clk 0:00:27.6]} 28. gxf6 {[%clk 0:01:12.2]} 28... Ba6+ {[%clk
0:00:21.6]} 29. Ke1 {[%clk 0:01:05.2]} 29... Qxe3+ {[%clk 0:00:20.6]} 30. Kd1
{[%clk 0:01:05.4]} 30... Be2+ {[%clk 0:00:10.9]} 31. Ke1 {[%clk 0:01:01.2]}
31... Bf3+ {[%clk 0:00:10.9]} 32. Kf1 {[%clk 0:00:57.9]} 32... Qe2+ {[%clk
0:00:11.4]} 33. Kg1 {[%clk 0:00:57.6]} 33... Qxg2# {[%clk 0:00:12.3]} 0-1